bitfinex/quotes_SOLUSD_20230113
["timestamp","ask_amount","ask_price","bid_price","bid_amount"]
[1673589435117,20.0,16.809,16.796,118.551]
[1673589436282,31.42683801,16.808,16.796,118.551]
[1673589436485,20.0,16.807,16.796,118.551]
[1673589437015,20.0,16.807,16.794,112.7217]
[1673589437228,47.46683801,16.806,16.794,112.7217]
[1673589437433,20.96,16.805,16.794,112.7217]
[1673589437647,17.0,16.804,16.794,112.7217]
[1673589438175,1.92,16.803,16.794,112.7217]
[1673589438782,17.0,16.804,16.794,112.7217]
[1673589441430,17.0,16.804,16.791,117.3626]
[1673589441741,32.38683801,16.803,16.785,109.6716]
[1673589441953,17.0,16.802,16.786,20.0]
[1673589442149,1.92,16.803,16.786,20.0]
[1673589442353,1.92,16.803,16.787,10.0]
[1673589442565,30.46683801,16.802,16.787,10.0]
[1673589442792,17.0,16.801,16.787,10.0]
[1673589443207,17.0,16.801,16.788,0.96]
[1673589444040,17.0,16.801,16.787,0.96]
[1673589444252,16.1,16.8,16.785,109.6716]
[1673589444463,37.0,16.799,16.785,109.6716]
[1673589444672,1.92,16.798,16.785,109.6716]
[1673589446889,20.0,16.799,16.785,109.6716]
[1673589447097,20.0,16.799,16.786,10.96]
[1673589447296,20.0,16.8,16.785,109.6716]
[1673589447715,50.46683801,16.8,16.785,109.6716]
[1673589448351,17.0,16.799,16.785,109.6716]
[1673589448567,20.0,16.798,16.785,109.6716]
[1673589448785,17.0,16.797,16.785,109.6716]
[1673589449102,20.0,16.796,16.785,109.6716]
[1673589449295,17.0,16.795,16.785,109.6716]
[1673589449509,20.0,16.794,16.785,109.6716]
[1673589451832,20.0,16.799,16.785,109.6716]
[1673589452036,30.46683801,16.798,16.785,109.6716]
[1673589452558,20.0,16.797,16.785,109.6716]
[1673589452764,0.96,16.796,16.785,109.6716]
[1673589452973,18.92,16.796,16.771,10.0]
[1673589453209,50.46683801,16.795,16.778,109.7794]
[1673589453415,18.92,16.794,16.778,109.7794]
[1673589453945,18.92,16.794,16.779,10.0]
[1673589454366,18.92,16.794,16.78,0.96]
[1673589456392,18.92,16.794,16.778,109.7794]
[1673589456562,49.38683801,16.794,16.778,109.7794]
[1673589456880,49.38683801,16.794,16.776,128.5599203]
[1673589456881,15.99,16.79,16.776,128.5599203]
[1673589457284,119.71647281,16.789,16.776,128.5599203]
[1673589457501,120.67647281,16.789,16.776,128.5599203]
[1673589457712,81.75647281,16.788,16.776,128.5599203]
[1673589457933,20.0,16.787,16.776,128.5599203]
[1673589458131,18.92,16.786,16.776,128.5599203]
[1673589458339,20.0,16.785,16.776,128.5599203]
[1673589461073,20.0,16.785,16.777,0.96]
[1673589461293,20.0,16.787,16.777,11.92]
[1673589461606,20.0,16.789,16.777,10.96]
[1673589461810,20.0,16.793,16.777,10.96]
[1673589462432,60.93367602,16.792,16.776,128.5599203]
[1673589462638,38.92,16.791,16.777,0.96]
[1673589462864,0.96,16.791,16.777,0.96]
[1673589463091,10.0,16.809,16.78,80.61]
[1673589463322,135.42313267,16.823,16.779,10.0]
[1673589463323,268.30175957,16.829,16.795,30.71543226]
[1673589463499,34.67110638,16.857,16.797,268.8850024]
[1673589463500,114.9473,16.853,16.797,268.8850024]
[1673589463709,114.9473,16.853,16.802,177.2]
[1673589463920,87.5785578,16.848,16.803,24.90417]
[1673589464129,48.88267093,16.85,16.803,24.90417]
[1673589464130,80.42,16.85,16.82,80.57]
[1673589464331,30.46683801,16.847,16.821,1.92]
[1673589464545,15.95,16.84,16.821,1.92]
[1673589465919,15.95,16.84,16.821,11.92]
[1673589466237,15.95,16.84,16.821,10.96]
[1673589466656,15.95,16.84,16.822,0.96]
[1673589467084,15.95,16.84,16.823,0.96]
[1673589467926,15.95,16.84,16.824,0.96]
[1673589468119,15.95,16.84,16.816,10.0]
[1673589468559,76.88367602,16.84,16.816,10.0]
[1673589468774,15.95,16.84,16.816,10.0]
[1673589468980,15.95,16.84,16.816,14.90038]
[1673589469175,20.0,16.839,16.818,10.0]
[1673589469385,20.0,16.839,16.819,1.92]
[1673589469597,20.0,16.839,16.82,16.1]
[1673589469800,20.0,16.839,16.821,11.92]
[1673589470353,17.0,16.838,16.821,11.92]
[1673589470543,20.0,16.837,16.821,11.92]
[1673589471180,17.0,16.836,16.821,11.92]
[1673589471390,20.0,16.835,16.821,11.92]
[1673589472138,20.0,16.839,16.821,11.92]
[1673589473081,20.0,16.844,16.821,11.92]
[1673589473278,18.92,16.843,16.821,11.92]
[1673589473488,20.0,16.842,16.821,11.92]
[1673589473698,17.0,16.841,16.821,11.92]
[1673589473915,0.96,16.84,16.821,11.92]
[1673589474131,20.96,16.84,16.821,11.92]
[1673589474338,17.96,16.839,16.821,11.92]
[1673589474549,20.0,16.84,16.821,11.92]
[1673589474767,30.46683801,16.847,16.821,11.92]
[1673589474977,0.96,16.846,16.821,11.92]
[1673589475191,0.96,16.846,16.823,10.0]
[1673589475403,30.46683801,16.849,16.824,21.92]
[1673589475617,30.46683801,16.849,16.825,10.0]
[1673589475807,30.46683801,16.849,16.826,21.92]
[1673589476136,30.46683801,16.849,16.827,10.0]
[1673589476348,30.46683801,16.849,16.828,0.96]
[1673589476564,20.0,16.848,16.828,0.96]
[1673589477089,20.0,16.848,16.829,0.96]
[1673589477296,20.0,16.849,16.828,0.96]
[1673589477715,20.0,16.849,16.829,0.96]
[1673589477901,20.0,16.849,16.83,0.96]
[1673589478122,20.0,16.849,16.829,0.96]
[1673589478438,18.92,16.848,16.829,0.96]
[1673589478648,20.0,16.847,16.829,0.96]
[1673589478862,18.92,16.846,16.812,108.8432]
[1673589479074,20.0,16.845,16.821,109.0158]
[1673589479397,17.0,16.844,16.822,10.0]
[1673589479604,20.0,16.843,16.822,10.0]
[1673589479800,17.0,16.842,16.822,10.0]
[1673589480019,20.0,16.841,16.822,10.0]
[1673589480222,17.0,16.84,16.822,10.0]
[1673589480649,20.0,16.839,16.822,10.0]
[1673589480953,17.0,16.838,16.821,109.0158]
[1673589481173,20.0,16.837,16.821,109.0158]
[1673589481596,17.0,16.836,16.821,109.0158]
[1673589481807,20.0,16.835,16.821,109.0158]
[1673589482446,20.0,16.835,16.822,0.96]
[1673589482662,24.08,16.85,16.822,46.25490266]
[1673589482863,20.0,16.849,16.823,4.89834]
[1673589483181,20.0,16.849,16.824,10.0]
[1673589483383,20.0,16.849,16.826,10.0]
[1673589483818,20.0,16.849,16.827,0.96]
[1673589484240,18.92,16.848,16.827,0.96]
[1673589484438,20.0,16.847,16.827,0.96]
[1673589484646,17.0,16.846,16.827,0.96]
[1673589484854,21.92,16.845,16.827,0.96]
[1673589485065,17.0,16.844,16.827,0.96]
[1673589485275,0.96,16.843,16.827,0.96]
[1673589485489,1.92,16.843,16.827,0.96]
[1673589487922,24.07,16.84,16.812,108.8432]
[1673589488129,37.0,16.839,16.821,109.0158]
[1673589488444,1.92,16.838,16.821,109.0158]
[1673589488638,32.38683801,16.838,16.821,109.0158]
[1673589488849,37.0,16.837,16.821,109.0158]
[1673589489063,47.46683801,16.837,16.822,10.0]
[1673589489284,50.46683801,16.836,16.822,10.0]
[1673589489695,30.46683801,16.835,16.822,10.0]
[1673589490235,30.46683801,16.835,16.821,109.0158]
[1673589490420,20.0,16.836,16.821,109.0158]
[1673589490421,17.96,16.834,16.821,109.0158]
[1673589492422,0.96,16.833,16.821,109.0158]
[1673589493695,0.96,16.832,16.821,109.0158]
[1673589494327,0.96,16.831,16.821,109.0158]
[1673589496122,0.96,16.831,16.812,108.8432]
[1673589496329,24.07,16.83,16.812,108.8432]
[1673589496535,54.53683801,16.83,16.812,108.8432]
[1673589496753,67.46683801,16.829,16.812,108.8432]
[1673589496945,68.42683801,16.829,16.812,108.8432]
[1673589497155,30.46683801,16.828,16.812,108.8432]
[1673589497485,37.96,16.827,16.812,108.8432]
[1673589497896,30.46683801,16.826,16.812,108.8432]
[1673589498111,20.0,16.825,16.812,108.8432]
[1673589498316,17.0,16.824,16.812,108.8432]
[1673589502119,20.0,16.825,16.813,10.96]
[1673589502306,30.46683801,16.829,16.814,0.96]
[1673589502516,30.46683801,16.829,16.815,0.96]
[1673589502517,20.0,16.828,16.815,0.96]
[1673589502937,50.46683801,16.828,16.812,108.8432]
[1673589503171,50.46683801,16.828,16.813,11.92]
[1673589503800,0.96,16.827,16.813,11.92]
[1673589504112,18.92,16.827,16.813,1.92]
[1673589504299,20.0,16.826,16.813,1.92]
[1673589504511,17.0,16.825,16.812,108.8432]
[1673589504729,20.0,16.824,16.812,108.8432]
[1673589504931,17.0,16.823,16.812,108.8432]
[1673589505793,0.96,16.822,16.812,108.8432]
[1673589506012,1.92,16.822,16.812,108.8432]
[1673589506721,17.0,16.823,16.812,108.8432]
[1673589507360,1.92,16.822,16.812,108.8432]
[1673589507573,17.0,16.823,16.812,108.8432]
[1673589508213,10.0,16.836,16.812,108.8432]
[1673589508437,118.8255,16.839,16.813,20.0]
[1673589508645,30.46683801,16.835,16.814,10.0]
[1673589509155,30.46683801,16.835,16.816,10.0]
[1673589509361,30.46683801,16.835,16.817,1.92]
[1673589509590,30.46683801,16.835,16.816,10.0]
[1673589509908,30.46683801,16.835,16.817,0.96]
[1673589510119,30.46683801,16.835,16.818,0.96]
[1673589510325,30.46683801,16.835,16.819,0.96]
[1673589510858,17.0,16.834,16.819,0.96]
[1673589511254,30.46683801,16.833,16.819,0.96]
[1673589511465,17.0,16.832,16.819,0.96]
[1673589512003,47.46683801,16.832,16.819,0.96]
[1673589512220,47.46683801,16.832,16.82,0.96]
[1673589512427,17.0,16.832,16.82,0.96]
[1673589513045,108.8255,16.839,16.82,25.03]
[1673589513256,38.92,16.838,16.821,115.9479]
[1673589513467,38.92,16.838,16.822,10.0]
[1673589514092,20.0,16.838,16.822,10.0]
[1673589514301,20.0,16.839,16.823,0.96]
[1673589514825,120.51,16.85,16.824,0.96]
[1673589515052,117.3132,16.847,16.825,0.96]
[1673589515295,117.3132,16.847,16.825,20.96]
[1673589515577,117.3132,16.847,16.826,0.96]
[1673589515793,117.3132,16.847,16.827,0.96]
[1673589516187,37.0,16.846,16.821,114.9879]
[1673589516401,23.95,16.84,16.821,114.9879]
[1673589516622,37.0,16.839,16.821,114.9879]
[1673589516830,1.92,16.838,16.821,114.9879]
[1673589520427,1.92,16.838,16.822,10.96]
[1673589520632,1.92,16.838,16.823,0.96]
[1673589520948,20.0,16.839,16.824,0.96]
[1673589521167,20.0,16.839,16.825,0.96]
[1673589521358,20.0,16.844,16.826,0.96]
[1673589521895,20.0,16.844,16.827,0.96]
[1673589522845,18.92,16.843,16.827,0.96]
[1673589523159,20.0,16.842,16.827,0.96]
[1673589523365,18.92,16.841,16.827,0.96]
[1673589523762,20.0,16.84,16.827,0.96]
[1673589523999,17.0,16.839,16.827,0.96]
[1673589524211,20.0,16.838,16.827,0.96]
[1673589524731,20.0,16.838,16.812,108.8432]
[1673589525044,17.0,16.837,16.815,114.3906]
[1673589525370,21.92,16.836,16.817,10.0]
[1673589525671,17.0,16.835,16.815,114.3906]
[1673589525886,1.92,16.834,16.816,20.0]
[1673589528304,1.92,16.834,16.817,1.92]
[1673589529761,1.92,16.834,16.815,114.3906]
[1673589530089,21.92,16.834,16.815,114.3906]
[1673589530404,17.0,16.833,16.815,114.3906]
[1673589530620,20.0,16.832,16.815,114.3906]
[1673589530807,18.92,16.831,16.815,114.3906]
[1673589531143,20.0,16.83,16.815,114.3906]
[1673589531353,17.0,16.829,16.815,114.3906]
[1673589531561,20.0,16.828,16.815,114.3906]
[1673589531754,17.0,16.827,16.815,114.3906]
[1673589532068,20.0,16.826,16.815,114.3906]
[1673589532279,17.0,16.825,16.815,114.3906]
[1673589532715,20.0,16.824,16.815,114.3906]
[1673589533136,20.0,16.824,16.813,10.0]
[1673589533453,20.0,16.824,16.812,108.8432]
[1673589533651,17.0,16.823,16.812,108.8432]
[1673589539326,17.0,16.823,16.803,117.6622]
[1673589539526,20.0,16.822,16.803,117.6622]
[1673589539736,17.0,16.821,16.803,117.6622]
[1673589540051,20.0,16.82,16.803,117.6622]
[1673589540262,17.0,16.819,16.803,117.6622]
[1673589540479,20.0,16.818,16.803,117.6622]
[1673589540681,17.0,16.817,16.804,0.96]
[1673589540900,20.0,16.816,16.804,10.96]
[1673589541631,116.309,16.829,16.806,10.0]
[1673589541838,17.0,16.828,16.807,0.96]
[1673589542170,116.309,16.829,16.807,0.96]
[1673589542581,30.46683801,16.827,16.807,0.96]
[1673589543014,20.0,16.826,16.807,0.96]
[1673589543336,30.46683801,16.825,16.807,0.96]
[1673589543648,20.0,16.824,16.807,0.96]
[1673589544070,30.46683801,16.823,16.808,0.96]
[1673589544374,30.46683801,16.823,16.809,0.96]
[1673589545436,30.46683801,16.823,16.806,10.0]
[1673589545437,18.92,16.822,16.806,10.0]
[1673589545636,18.92,16.822,16.807,0.96]
[1673589545843,49.38683801,16.822,16.807,0.96]
[1673589546059,49.38683801,16.822,16.808,0.96]
[1673589546788,49.38683801,16.822,16.805,74.33374302]
[1673589547003,49.38683801,16.822,16.806,0.96]
[1673589547443,30.46683801,16.821,16.806,0.96]
[1673589547643,17.0,16.82,16.806,0.96]
[1673589547864,1.92,16.819,16.806,0.96]
[1673589548788,1.92,16.819,16.805,20.0]
[1673589549011,1.92,16.819,16.806,0.96]
[1673589550995,17.0,16.82,16.806,0.96]
[1673589551543,17.0,16.82,16.807,0.96]
[1673589552375,42.38683801,16.819,16.794,148.14893226]
[1673589552568,292.38566986,16.819,16.794,117.4335]
[1673589552779,15.93,16.81,16.794,117.4335]
[1673589553198,37.96,16.809,16.794,117.4335]
[1673589554053,20.0,16.809,16.795,10.0]
[1673589554375,20.0,16.816,16.797,10.0]
[1673589554571,17.0,16.815,16.798,0.96]
[1673589554787,17.0,16.815,16.799,0.96]
[1673589555324,20.0,16.818,16.801,10.0]
[1673589555533,20.0,16.818,16.802,116.2386]
[1673589555741,20.0,16.819,16.803,10.96]
[1673589555933,30.46683801,16.82,16.803,127.6947]
[1673589556359,30.46683801,16.82,16.804,0.96]
[1673589556586,30.46683801,16.82,16.805,0.96]
[1673589556980,30.46683801,16.82,16.806,0.96]
[1673589557186,20.0,16.819,16.806,0.96]
[1673589558155,20.0,16.819,16.805,0.96]
[1673589558345,20.0,16.819,16.806,0.96]
[1673589558556,30.46683801,16.82,16.806,0.96]
[1673589558994,119.1791,16.827,16.806,0.96]
[1673589559210,17.0,16.826,16.807,0.96]
[1673589559734,16.05,16.83,16.807,0.96]
[1673589559923,113.2443,16.837,16.81,16.08]
[1673589560129,30.46683801,16.833,16.812,10.0]
[1673589560367,20.0,16.832,16.813,0.96]
[1673589560880,30.46683801,16.831,16.813,0.96]
[1673589561074,38.92,16.83,16.814,0.96]
[1673589561281,38.92,16.83,16.815,0.96]
[1673589561600,69.38683801,16.83,16.815,0.96]
[1673589562669,50.46683801,16.83,16.815,0.96]
[1673589562878,50.46683801,16.83,16.816,0.96]
[1673589563513,50.46683801,16.83,16.812,112.7008]
[1673589564119,18.92,16.829,16.812,112.7008]
[1673589564335,20.0,16.828,16.812,112.7008]
[1673589564561,17.0,16.827,16.812,112.7008]
[1673589564771,21.92,16.826,16.812,112.7008]
[1673589565090,17.0,16.825,16.812,112.7008]
[1673589569283,17.0,16.825,16.813,10.0]
[1673589570341,17.0,16.825,16.812,112.7008]
[1673589573705,17.0,16.825,16.813,10.0]
[1673589574653,20.0,16.826,16.813,10.0]
[1673589574844,20.0,16.829,16.814,1.92]
[1673589575052,20.0,16.835,16.814,1.92]
[1673589575263,50.46683801,16.835,16.814,1.92]
[1673589575491,30.46683801,16.834,16.814,1.92]
[1673589575694,20.0,16.833,16.814,1.92]
[1673589576016,17.0,16.832,16.814,1.92]
[1673589576219,20.0,16.831,16.814,1.92]
[1673589576430,17.0,16.83,16.814,1.92]
[1673589576641,20.0,16.829,16.814,1.92]
[1673589576835,17.0,16.828,16.814,1.92]
[1673589577175,20.0,16.827,16.814,1.92]
[1673589579065,20.0,16.827,16.805,65.67074752]
[1673589579066,120.07,16.82,16.794,127.4335]
[1673589579295,23.99,16.82,16.801,116.338]
[1673589579609,47.46683801,16.819,16.801,116.338]
[1673589579823,67.46683801,16.819,16.801,116.338]
[1673589580017,30.46683801,16.818,16.801,116.338]
[1673589580218,37.0,16.817,16.801,116.338]
[1673589580667,23.98,16.81,16.794,117.4335]
[1673589581054,114.8591,16.816,16.795,10.0]
[1673589581282,30.46683801,16.814,16.795,10.0]
[1673589581483,24.04,16.81,16.794,117.4335]
[1673589581692,21.92,16.809,16.794,117.4335]
[1673589581921,17.0,16.808,16.794,117.4335]
[1673589582113,20.0,16.807,16.794,117.4335]
[1673589582321,17.0,16.806,16.794,117.4335]
[1673589582553,0.96,16.805,16.794,117.4335]
[1673589584445,20.0,16.807,16.794,117.4335]
[1673589584647,20.0,16.807,16.795,0.96]
[1673589584968,20.0,16.809,16.795,0.96]
[1673589585177,18.92,16.808,16.795,0.96]
[1673589585404,20.0,16.807,16.795,0.96]
[1673589589701,30.46683801,16.814,16.795,20.96]
[1673589589911,30.46683801,16.814,16.796,10.0]
[1673589590112,30.46683801,16.814,16.797,0.96]
[1673589591909,30.46683801,16.814,16.798,0.96]
[1673589592117,30.46683801,16.814,16.799,0.96]
[1673589592521,114.8591,16.816,16.799,10.96]
[1673589592950,114.8591,16.816,16.8,10.0]
[1673589593147,114.8591,16.816,16.801,0.96]
[1673589593359,17.0,16.815,16.802,0.96]
[1673589593582,114.8591,16.816,16.802,0.96]
[1673589593785,114.8591,16.816,16.803,0.96]
[1673589593994,24.08,16.82,16.803,0.96]
[1673589594324,20.0,16.819,16.803,118.2786]
[1673589594643,20.0,16.819,16.804,10.0]
[1673589594833,1.92,16.818,16.804,10.0]
[1673589595046,18.92,16.818,16.804,10.0]
[1673589595254,20.0,16.817,16.804,10.0]
[1673589595471,17.0,16.816,16.804,10.0]
[1673589595895,20.0,16.817,16.805,0.96]
[1673589596096,20.0,16.821,16.805,0.96]
[1673589596522,20.0,16.821,16.804,10.0]
[1673589597480,50.46683801,16.821,16.804,10.0]
[1673589597694,18.92,16.82,16.803,117.3186]
[1673589597896,20.0,16.819,16.803,117.3186]
[1673589598110,17.0,16.818,16.803,117.3186]
[1673589598312,20.0,16.817,16.803,117.3186]
[1673589598516,17.0,16.816,16.803,117.3186]
[1673589598934,17.0,16.816,16.8,24.14]
[1673589599154,30.46683801,16.815,16.795,20.0]
[1673589599472,18.92,16.814,16.796,10.0]
[1673589599875,49.38683801,16.814,16.796,10.0]
[1673589600303,49.38683801,16.814,16.797,1.92]
[1673589603263,49.38683801,16.814,16.796,10.0]
[1673589603458,49.38683801,16.814,16.795,10.0]
[1673589603672,23.98,16.81,16.794,117.4335]
[1673589603885,37.0,16.809,16.794,117.4335]
[1673589604419,37.0,16.809,16.795,10.0]
[1673589604607,37.0,16.809,16.794,117.4335]
[1673589604818,67.46683801,16.809,16.794,117.4335]
[1673589605872,67.46683801,16.809,16.795,10.0]
[1673589606084,0.96,16.808,16.795,10.0]
[1673589606818,0.96,16.808,16.794,117.4335]
[1673589607874,31.42683801,16.808,16.794,117.4335]
[1673589608200,37.0,16.807,16.794,117.4335]
[1673589608401,0.96,16.806,16.794,116.9335]
[1673589615864,0.96,16.806,16.795,10.0]
[1673589616065,0.96,16.806,16.787,55.11694438]
[1673589616281,31.42683801,16.805,16.787,10.0]
[1673589616500,17.0,16.804,16.787,10.0]
[1673589616729,20.96,16.803,16.787,10.0]
[1673589616904,17.0,16.802,16.787,10.0]
[1673589617114,20.0,16.801,16.787,10.0]
[1673589617325,20.0,16.801,16.784,10.0]
[1673589617972,18.92,16.8,16.784,10.0]
[1673589618168,20.0,16.799,16.784,10.0]
[1673589618813,17.96,16.798,16.784,10.0]
[1673589619009,20.0,16.797,16.784,10.0]
[1673589619656,20.0,16.806,16.788,10.0]
[1673589619855,20.0,16.806,16.789,0.96]
[1673589620386,150.64683801,16.81,16.79,0.96]
[1673589620621,23.9,16.81,16.791,0.96]
[1673589620827,23.9,16.81,16.792,0.96]
[1673589621361,20.0,16.808,16.792,0.96]
[1673589621976,20.0,16.808,16.791,10.96]
[1673589622190,18.92,16.807,16.791,10.96]
[1673589622402,20.0,16.806,16.791,10.0]
[1673589622613,17.0,16.805,16.79,109.1438]
[1673589622819,21.92,16.804,16.79,109.1438]
[1673589623040,17.0,16.803,16.791,10.0]
[1673589623448,1.92,16.802,16.79,109.1438]
[1673589623662,1.92,16.802,16.791,10.0]
[1673589624187,1.92,16.802,16.79,109.1438]
[1673589626402,17.0,16.803,16.79,109.1438]
[1673589626722,120.46,16.81,16.791,10.96]
[1673589626935,20.0,16.808,16.791,10.0]
[1673589628003,18.92,16.807,16.791,10.0]
[1673589628175,20.0,16.806,16.791,10.0]
[1673589628396,17.96,16.805,16.791,10.0]
[1673589628609,20.96,16.804,16.79,109.1438]
[1673589628927,17.96,16.803,16.79,109.1438]
[1673589629348,0.96,16.802,16.79,109.1438]
[1673589630727,20.0,16.804,16.79,109.1438]
[1673589630930,20.0,16.808,16.791,27.18673525]
[1673589631264,135.0448,16.815,16.792,10.96]
[1673589631461,20.0,16.815,16.794,10.0]
[1673589631671,24.22,16.82,16.8,16.09]
[1673589631672,20.0,16.819,16.8,16.09]
[1673589631867,20.0,16.819,16.801,112.3824]
[1673589632397,115.0448,16.829,16.802,36.22673525]
[1673589632606,115.0448,16.829,16.803,20.96]
[1673589632815,115.0448,16.829,16.804,10.96]
[1673589632816,30.46683801,16.828,16.804,10.96]
[1673589633038,30.46683801,16.828,16.805,20.96]
[1673589633249,15.95,16.82,16.803,116.5673]
[1673589633451,15.95,16.82,16.803,115.6073]
[1673589633664,50.46683801,16.819,16.803,115.6073]
[1673589633872,50.46683801,16.819,16.804,11.92]
[1673589634083,30.46683801,16.818,16.804,10.96]
[1673589634289,20.0,16.817,16.804,10.0]
[1673589634488,38.92,16.817,16.805,1.92]
[1673589634700,37.0,16.817,16.805,0.96]
[1673589634914,37.0,16.817,16.804,10.0]
[1673589635765,20.0,16.817,16.805,0.96]
[1673589635985,20.0,16.823,16.806,10.0]
[1673589636183,20.0,16.823,16.807,0.96]
[1673589636389,50.46683801,16.823,16.807,0.96]
[1673589636809,50.46683801,16.823,16.806,10.0]
[1673589637231,17.0,16.822,16.806,10.0]
[1673589637449,20.0,16.821,16.806,10.0]
[1673589637655,17.0,16.82,16.806,10.0]
[1673589637858,17.0,16.822,16.807,0.96]
[1673589638079,1.92,16.821,16.807,0.96]
[1673589638486,104.2691,16.83,16.807,0.96]
[1673589638922,104.2691,16.83,16.808,10.0]
[1673589639137,104.2691,16.83,16.809,120.148]
[1673589639138,20.0,16.828,16.809,120.148]
[1673589639348,20.0,16.828,16.81,10.0]
[1673589640797,0.96,16.827,16.81,10.0]
[1673589641137,20.0,16.828,16.81,10.0]
[1673589641346,20.0,16.828,16.811,0.96]
[1673589641536,20.0,16.828,16.812,0.96]
[1673589641962,20.0,16.828,16.812,119.2417]
[1673589642290,20.0,16.828,16.813,10.0]
[1673589643657,20.0,16.828,16.812,118.2817]
[1673589644073,20.0,16.828,16.813,10.0]
[1673589644395,18.92,16.827,16.813,10.0]
[1673589644574,20.0,16.826,16.813,10.0]
[1673589644789,17.0,16.825,16.813,10.0]
[1673589645018,20.0,16.824,16.813,10.0]
[1673589645226,20.0,16.824,16.814,0.96]
[1673589645441,20.0,16.824,16.815,0.96]
[1673589645753,20.0,16.829,16.815,0.96]
[1673589646690,18.92,16.828,16.815,0.96]
[1673589646922,20.0,16.827,16.815,0.96]
[1673589647567,20.0,16.827,16.814,0.96]
[1673589647763,17.0,16.826,16.814,0.96]
[1673589648305,20.0,16.825,16.814,0.96]
[1673589649233,20.0,16.825,16.813,10.0]
[1673589649863,17.0,16.824,16.813,10.0]
[1673589650285,20.0,16.825,16.813,10.0]
[1673589650497,1.92,16.828,16.813,10.0]
[1673589650834,18.92,16.828,16.813,10.0]
[1673589651024,20.0,16.827,16.813,10.0]
[1673589651456,20.0,16.827,16.814,1.92]
[1673589656186,139.84,16.84,16.815,10.0]
[1673589656187,16.19,16.84,16.815,10.0]
[1673589656503,16.19,16.84,16.816,63.06727444]
[1673589656703,16.19,16.84,16.816,119.83758881]
[1673589657132,16.19,16.84,16.817,10.0]
[1673589657327,30.46683801,16.839,16.812,118.2817]
[1673589657537,10.0,16.838,16.813,10.0]
[1673589657748,20.0,16.837,16.813,10.0]
[1673589657976,50.46683801,16.837,16.813,10.0]
[1673589658189,30.46683801,16.836,16.813,10.0]
[1673589658380,20.0,16.835,16.813,10.0]
[1673589658585,18.92,16.834,16.813,10.0]
[1673589658797,20.0,16.833,16.813,10.0]
[1673589659012,17.0,16.832,16.813,10.0]